bitfinex/quotes_BTCUSD_20240818
["timestamp","ask_amount","ask_price","bid_price","bid_amount"]
[1723991411772,0.54967654,59979.0,59978.0,0.15206637]
[1723991412177,0.54967654,59979.0,59978.0,0.02766637]
[1723991412553,0.53567654,59979.0,59978.0,0.02766637]
[1723991413006,0.54967654,59979.0,59978.0,0.02766637]
[1723991413180,0.30226154,59979.0,59978.0,0.02766637]
[1723991413381,0.28826154,59979.0,59978.0,0.02766637]
[1723991413668,0.29526154,59979.0,59978.0,0.02766637]
[1723991413872,0.28826154,59979.0,59978.0,0.02766637]
[1723991414174,0.29626154,59979.0,59978.0,0.02766637]
[1723991415021,0.52500689,59979.0,59978.0,0.02766637]
[1723991415217,0.53200689,59979.0,59978.0,0.02766637]
[1723991415419,0.54100689,59979.0,59978.0,0.02766637]
[1723991415970,0.62190689,59979.0,59978.0,0.02766637]
[1723991417099,0.61857654,59979.0,59978.0,0.02766637]
[1723991417505,0.18755454,59979.0,59978.0,0.32448437]
[1723991417705,0.18755454,59979.0,59978.0,0.50389337]
[1723991418227,0.18755454,59979.0,59978.0,0.27047537]
[1723991418427,0.17855454,59979.0,59978.0,0.27047537]
[1723991418628,0.17155454,59979.0,59978.0,0.27047537]
[1723991418808,0.17455454,59979.0,59978.0,0.27047537]
[1723991419475,0.17455454,59979.0,59978.0,0.15376637]
[1723991419880,0.25545454,59979.0,59978.0,0.02766637]
[1723991421296,0.003,59979.0,59978.0,0.73731137]
[1723991421517,0.003,59979.0,59978.0,0.75783392]
[1723991421769,0.003,59979.0,59978.0,0.52441592]
[1723991421936,0.003,59979.0,59978.0,0.75783392]
[1723991422367,0.000825,59980.0,59979.0,0.709637]
[1723991422564,0.000825,59980.0,59979.0,0.73015955]
[1723991423718,0.003825,59980.0,59979.0,0.73015955]
[1723991424159,0.003825,59980.0,59979.0,0.709637]
[1723991424360,0.003825,59980.0,59979.0,0.75691695]
[1723991429279,0.003825,59980.0,59979.0,0.99033195]
[1723991429482,0.000825,59980.0,59979.0,0.99033195]
[1723991429683,0.000825,59980.0,59979.0,0.99233195]
[1723991429921,0.001825,59980.0,59979.0,0.99233195]
[1723991430084,0.000825,59980.0,59979.0,0.29208695]
[1723991430291,0.000825,59980.0,59979.0,0.29008695]
[1723991430490,0.001825,59980.0,59979.0,0.29008695]
[1723991430736,0.001825,59980.0,59979.0,0.29208695]
[1723991430958,0.001825,59980.0,59979.0,0.17537995]
[1723991431337,0.000825,59980.0,59979.0,0.29208695]
[1723991432124,0.000825,59980.0,59979.0,0.20616587]
[1723991432326,0.002825,59980.0,59979.0,0.22668708]
[1723991432876,0.000825,59980.0,59979.0,0.22668708]
[1723991433274,0.002825,59980.0,59979.0,0.10998008]
[1723991433490,0.002825,59980.0,59979.0,0.04728008]
[1723991433706,0.83880654,59980.0,59979.0,0.02675887]
[1723991434821,0.91690654,59980.0,59979.0,0.02675887]
[1723991435026,1.17527934,59980.0,59979.0,0.02675887]
[1723991435217,1.24027934,59980.0,59979.0,0.02675887]
[1723991435835,1.21531754,59980.0,59979.0,0.02675887]
[1723991436455,1.13241754,59980.0,59979.0,0.02675887]
[1723991436873,1.14641754,59980.0,59979.0,0.02675887]
[1723991437072,1.16041754,59980.0,59979.0,0.02675887]
[1723991437914,1.14641754,59980.0,59979.0,0.02675887]
[1723991438413,1.13241754,59980.0,59979.0,0.02675887]
[1723991438898,1.14641754,59980.0,59979.0,0.02675887]
[1723991439232,1.14641754,59980.0,59979.0,0.02766637]
[1723991439838,1.16041754,59980.0,59979.0,0.02766637]
[1723991443858,0.92700654,59980.0,59979.0,0.02766637]
[1723991444915,0.92700654,59980.0,59978.0,0.0009075]
[1723991444916,0.002,59979.0,59978.0,0.0009075]
[1723991445161,1.53975641,59979.0,59978.0,0.0009075]
[1723991445377,1.59036934,59979.0,59978.0,0.0009075]
[1723991446219,1.60436934,59979.0,59978.0,0.0009075]
[1723991446631,1.61736934,59979.0,59978.0,0.0009075]
[1723991446846,1.60336934,59979.0,59978.0,0.0009075]
[1723991447044,1.6033641,59979.0,59978.0,0.0009075]
[1723991447412,1.70035498,59979.0,59978.0,0.0009075]
[1723991447810,1.72335498,59979.0,59978.0,0.0009075]
[1723991448022,1.77296267,59979.0,59978.0,0.0009075]
[1723991448505,1.72335498,59979.0,59978.0,0.0009075]
[1723991448711,1.73350723,59979.0,59978.0,0.0009075]
[1723991448888,1.74750723,59979.0,59978.0,0.0009075]
[1723991449108,1.74750723,59979.0,59971.0,0.0002]
[1723991449109,0.914947,59972.0,59971.0,0.0002]
[1723991449330,1.77174806,59972.0,59971.0,0.0002]
[1723991449721,1.77074806,59972.0,59971.0,0.0002]
[1723991449924,1.76974806,59972.0,59971.0,0.0002]
[1723991450555,1.73084354,59972.0,59971.0,0.0002]
[1723991450758,1.11660154,59972.0,59971.0,0.0002]
[1723991451183,1.40050154,59972.0,59971.0,0.0002]
[1723991451948,1.38650154,59972.0,59971.0,0.0002]
[1723991452377,1.40050154,59972.0,59971.0,0.0002]
[1723991452954,1.38650154,59972.0,59971.0,0.0002]
[1723991453515,1.40050154,59972.0,59971.0,0.0002]
[1723991453819,1.40050154,59972.0,59971.0,0.0011075]
[1723991454084,1.19830154,59972.0,59971.0,0.0011075]
[1723991454285,1.40050154,59972.0,59971.0,0.0011075]
[1723991454619,1.54714169,59972.0,59971.0,0.0011075]
[1723991454823,0.583692,59963.0,59958.0,0.0009075]
[1723991455194,1.09944654,59963.0,59958.0,0.0009075]
[1723991455413,1.33292354,59963.0,59958.0,0.0009075]
[1723991456221,1.34692354,59963.0,59958.0,0.0009075]
[1723991456438,1.33292354,59963.0,59958.0,0.0009075]
[1723991456601,1.34692354,59963.0,59958.0,0.0009075]
[1723991456805,1.36092354,59963.0,59958.0,0.0009075]
[1723991457015,0.817222,59959.0,59958.0,0.0009075]
[1723991457217,1.07147654,59959.0,59958.0,0.0009075]
[1723991458515,1.14767654,59959.0,59958.0,0.0009075]
[1723991459786,1.16167654,59959.0,59958.0,0.0009075]
[1723991459992,1.53455619,59959.0,59958.0,0.0009075]
[1723991460195,1.63155619,59959.0,59958.0,0.0009075]
[1723991460402,1.26167654,59959.0,59958.0,0.0009075]
[1723991460822,1.19947654,59959.0,59958.0,0.0009075]
[1723991461235,0.96598454,59959.0,59958.0,0.0009075]
[1723991461437,0.95198454,59959.0,59958.0,0.0009075]
[1723991461656,0.88328454,59959.0,59958.0,0.0009075]
[1723991461979,0.86928454,59959.0,59958.0,0.0009075]
[1723991462183,0.85528454,59959.0,59958.0,0.0009075]
[1723991462384,0.86928454,59959.0,59958.0,0.0009075]
[1723991462620,1.02698454,59959.0,59958.0,0.0009075]
[1723991462901,1.51796854,59959.0,59958.0,0.0009075]
[1723991463129,1.53196854,59959.0,59958.0,0.0009075]
[1723991463364,1.48996854,59959.0,59958.0,0.0009075]
[1723991463764,1.50196854,59959.0,59958.0,0.0009075]
[1723991463976,1.50596854,59959.0,59958.0,0.0009075]
[1723991464197,1.53413472,59959.0,59958.0,0.0009075]
[1723991465016,1.53513472,59959.0,59958.0,0.0009075]
[1723991465225,1.54813472,59959.0,59958.0,0.0009075]
[1723991465418,0.41582072,59959.0,59951.0,0.0002]
[1723991465628,0.12633035,59958.0,59951.0,0.0002]
[1723991465874,0.06743035,59957.0,59951.0,0.0002]
[1723991466063,0.053,59956.0,59951.0,0.0002]
[1723991468515,0.1,59956.0,59951.0,0.0002]
[1723991468714,0.014,59956.0,59951.0,0.0002]
[1723991468920,0.014,59956.0,59955.0,0.001]
[1723991469144,0.014,59956.0,59955.0,0.003]
[1723991469345,0.07426994,59962.0,59955.0,0.003]
[1723991469548,0.07426994,59962.0,59953.0,0.0009075]
[1723991469549,0.0641,59962.0,59954.0,0.0784]
[1723991469754,0.014,59956.0,59954.0,0.0784]
[1723991469951,0.014,59956.0,59953.0,0.0019075]
[1723991469952,0.014,59956.0,59953.0,0.0009075]
[1723991470309,0.07395598,59962.0,59953.0,0.0009075]
[1723991470548,0.17395598,59962.0,59953.0,0.0009075]
[1723991470760,0.023,59961.0,59953.0,0.0009075]
[1723991470958,0.123,59961.0,59953.0,0.0009075]
[1723991471519,0.0796,59960.0,59953.0,0.0009075]
[1723991471769,0.014,59956.0,59953.0,0.0760075]
[1723991471955,0.014,59956.0,59954.0,0.1]
[1723991472982,0.0641,59962.0,59954.0,0.1]
[1723991473252,0.08803,59962.0,59954.0,0.1]
[1723991473468,0.011,59956.0,59954.0,0.1]
[1723991474068,0.011,59956.0,59955.0,0.003]
[1723991474259,0.011,59956.0,59955.0,0.001]
[1723991475427,0.1,59965.0,59955.0,0.001]
[1723991475850,0.014,59962.0,59955.0,0.001]
[1723991476314,0.1,59965.0,59955.0,0.001]
[1723991476515,0.17092,59965.0,59955.0,0.001]
[1723991476711,0.18492,59965.0,59955.0,0.001]
[1723991476866,0.01,59956.0,59955.0,0.001]
[1723991477277,0.18492,59965.0,59954.0,0.1]
[1723991477471,0.079412,59964.0,59954.0,0.1]
[1723991477696,0.014,59962.0,59954.0,0.1]
[1723991477896,0.014,59962.0,59954.0,0.101]
[1723991478104,0.079412,59964.0,59954.0,0.1]
[1723991478272,0.0738312,59963.0,59954.0,0.1]
[1723991479405,0.0917,59956.0,59954.0,0.1]
[1723991479809,0.0917,59956.0,59954.0,0.1009075]
[1723991479810,0.2022,59956.0,59954.0,0.1009075]
[1723991480986,0.2162,59956.0,59954.0,0.1009075]
[1723991481184,0.22605691,59956.0,59954.0,0.1009075]
[1723991481566,0.24005691,59956.0,59954.0,0.1009075]
[1723991481971,0.03785691,59956.0,59954.0,0.1009075]
[1723991482540,0.02385691,59956.0,59954.0,0.1009075]
[1723991482710,0.03785691,59956.0,59954.0,0.1009075]
[1723991484311,0.2585171,59956.0,59954.0,0.1009075]
[1723991484486,0.4920221,59956.0,59954.0,0.1009075]
[1723991485744,0.45956191,59956.0,59954.0,0.1009075]
[1723991486081,0.22605691,59956.0,59954.0,0.1009075]
[1723991486280,0.34280891,59956.0,59954.0,0.1009075]
[1723991486760,0.22605691,59956.0,59954.0,0.1009075]
[1723991487151,0.24005691,59956.0,59954.0,0.1009075]
[1723991487386,0.22605691,59956.0,59954.0,0.1009075]
[1723991487584,0.21205691,59956.0,59954.0,0.1009075]
[1723991487787,0.22605691,59956.0,59954.0,0.1009075]
[1723991488529,0.27165691,59956.0,59954.0,0.1009075]
[1723991488926,0.28565691,59956.0,59954.0,0.1009075]
[1723991489712,0.2885658,59956.0,59954.0,0.1009075]
[1723991489916,0.33042238,59956.0,59954.0,0.1009075]
[1723991490276,0.32751349,59956.0,59954.0,0.1009075]
[1723991490833,0.28565691,59956.0,59954.0,0.1009075]
[1723991496384,0.24005691,59956.0,59954.0,0.1009075]
[1723991496755,0.03785691,59956.0,59954.0,0.1009075]
[1723991496969,0.03785691,59956.0,59955.0,0.1199]
[1723991497153,0.03785691,59956.0,59954.0,0.1009075]
[1723991497606,0.25465691,59956.0,59954.0,0.1009075]
[1723991498025,0.24065691,59956.0,59954.0,0.1009075]
[1723991498458,0.25465691,59956.0,59954.0,0.1009075]
[1723991499361,0.24065691,59956.0,59954.0,0.1009075]
[1723991499588,0.22605691,59956.0,59954.0,0.1009075]
[1723991499980,0.27418406,59956.0,59954.0,0.1009075]
[1723991500517,0.22605691,59956.0,59954.0,0.1009075]
[1723991500734,0.21205691,59956.0,59954.0,0.1009075]
[1723991500932,0.22605691,59956.0,59954.0,0.1009075]
[1723991501299,0.24005691,59956.0,59954.0,0.1009075]
[1723991501858,0.27005691,59956.0,59954.0,0.1009075]
[1723991502259,0.31962416,59956.0,59954.0,0.1009075]
[1723991502463,0.27005691,59956.0,59954.0,0.1009075]
[1723991504351,0.50356491,59956.0,59954.0,0.1009075]
[1723991504799,0.27005691,59956.0,59954.0,0.1009075]
[1723991505439,0.25605691,59956.0,59954.0,0.1009075]
[1723991505880,0.27005691,59956.0,59954.0,0.1009075]
[1723991506080,0.25605691,59956.0,59954.0,0.1009075]
[1723991506915,0.27005691,59956.0,59954.0,0.1009075]
[1723991507119,0.25605691,59956.0,59954.0,0.1009075]
[1723991507381,0.24205691,59956.0,59954.0,0.1009075]
[1723991507557,0.35208862,59956.0,59954.0,0.1009075]
[1723991508069,0.36608862,59956.0,59954.0,0.1009075]
[1723991508678,0.27005691,59956.0,59954.0,0.1009075]
[1723991509131,0.24205691,59956.0,59954.0,0.1009075]
[1723991509277,0.25605691,59956.0,59954.0,0.1009075]
[1723991509498,0.27005691,59956.0,59954.0,0.1009075]
[1723991509712,0.25605691,59956.0,59954.0,0.1009075]
[1723991509884,0.24205691,59956.0,59954.0,0.1009075]
[1723991510089,0.02385691,59956.0,59955.0,0.1199]
[1723991510305,0.02385691,59956.0,59955.0,0.2682]
[1723991510306,0.03785691,59956.0,59955.0,0.2682]
[1723991510974,0.02385691,59956.0,59955.0,0.2682]
[1723991512122,0.00985691,59956.0,59955.0,0.2682]
[1723991512336,0.000825,59962.0,59954.0,0.1009075]
[1723991512548,0.01107054,59962.0,59956.0,0.3824]
[1723991512749,0.014,59956.0,59955.0,0.3824]
[1723991512999,0.028,59956.0,59955.0,0.3824]
[1723991513379,0.014,59956.0,59955.0,0.3824]
[1723991513580,0.000825,59962.0,59955.0,0.3824]
[1723991513779,0.028825,59962.0,59955.0,0.3824]
[1723991514212,0.0606775,59962.0,59955.0,0.3824]
[1723991514550,0.014,59956.0,59955.0,0.3824]
[1723991515672,0.028,59956.0,59955.0,0.3824]
[1723991516944,0.028825,59956.0,59955.0,0.3824]
[1723991517808,0.03880251,59956.0,59955.0,0.3824]
[1723991518207,0.02480251,59956.0,59955.0,0.3824]
[1723991519643,0.03880251,59956.0,59955.0,0.3824]
[1723991519849,0.02480251,59956.0,59955.0,0.3824]
[1723991520175,0.01080251,59956.0,59955.0,0.3824]
[1723991520377,0.03880251,59956.0,59955.0,0.3824]
[1723991520583,0.028825,59956.0,59955.0,0.3824]
[1723991521726,0.014825,59956.0,59955.0,0.3824]
[1723991522522,0.014825,59956.0,59955.0,0.3834]
[1723991523615,0.000825,59956.0,59955.0,0.3834]
[1723991524604,0.013825,59956.0,59955.0,0.3834]
[1723991525124,0.013825,59956.0,59955.0,0.3824]
[1723991526166,0.026825,59956.0,59955.0,0.3824]
[1723991526579,0.013825,59956.0,59955.0,0.3824]
[1723991527012,0.025825,59956.0,59955.0,0.3824]
[1723991527230,0.000825,59956.0,59955.0,0.3824]
[1723991527438,0.014825,59956.0,59955.0,0.3824]
[1723991527643,0.027825,59956.0,59955.0,0.3824]
[1723991528050,0.014825,59956.0,59955.0,0.3824]
[1723991528453,0.028825,59956.0,59955.0,0.3824]
[1723991529007,0.014825,59956.0,59955.0,0.3824]
[1723991529371,0.028825,59956.0,59955.0,0.3824]
[1723991529569,0.014825,59956.0,59955.0,0.3824]
[1723991530033,0.014825,59956.0,59954.0,0.1009075]
[1723991530450,0.27465985,59956.0,59954.0,0.1009075]
[1723991530648,0.26065985,59956.0,59954.0,0.1009075]
[1723991531077,0.01141949,59955.0,59954.0,0.1009075]
[1723991532543,0.01141949,59955.0,59954.0,0.0009075]
[1723991532674,0.11141949,59955.0,59954.0,0.0009075]
[1723991532878,0.29381949,59955.0,59954.0,0.0009075]
[1723991533091,0.2824,59955.0,59954.0,0.0009075]
[1723991533466,0.37084961,59955.0,59954.0,0.0009075]
[1723991533916,0.72111161,59955.0,59954.0,0.0009075]
[1723991534123,0.62230361,59955.0,59954.0,0.0009075]
[1723991534318,0.74814203,59955.0,59954.0,0.0009075]
[1723991534525,0.7481058,59955.0,59954.0,0.0009075]
[1723991534961,0.7621058,59955.0,59954.0,0.0009075]
[1723991535166,0.03,59949.0,59945.0,0.0013739]
[1723991535345,0.2,59950.0,59939.0,0.009075]
[1723991535346,0.03,59942.0,59939.0,0.009075]
[1723991535564,0.1043773,59942.0,59939.0,0.009075]
[1723991535722,0.13,59942.0,59939.0,0.009075]
[1723991536347,0.2043806,59942.0,59939.0,0.009075]
[1723991536548,0.26702563,59942.0,59939.0,0.009075]
[1723991537249,0.20664503,59942.0,59939.0,0.009075]
[1723991537457,0.20664503,59942.0,59939.0,0.277175]
[1723991537458,0.144,59942.0,59939.0,0.277175]
[1723991537656,0.158,59942.0,59939.0,0.277175]
[1723991537873,0.044,59942.0,59939.0,0.009075]
[1723991538275,0.058,59942.0,59939.0,0.009075]
[1723991538720,0.044,59942.0,59939.0,0.009075]
[1723991538916,0.10980516,59942.0,59939.0,0.009075]
[1723991539128,0.22380516,59942.0,59939.0,0.009075]
[1723991541384,0.23373492,59942.0,59939.0,0.009075]
[1723991541517,0.28325328,59942.0,59939.0,0.009075]
[1723991542500,0.21744812,59942.0,59939.0,0.009075]
[1723991542699,0.16792976,59942.0,59939.0,0.009075]
[1723991542850,0.21744357,59942.0,59939.0,0.009075]
[1723991543659,0.16792976,59942.0,59939.0,0.009075]
[1723991544595,0.13792976,59942.0,59939.0,0.009075]
[1723991544837,0.03792976,59942.0,59941.0,0.471775]
[1723991545816,0.02392976,59942.0,59941.0,0.471775]
[1723991546019,0.02392976,59942.0,59941.0,0.472775]
[1723991546020,0.014,59942.0,59941.0,0.472775]
[1723991546221,0.028,59942.0,59941.0,0.472775]
[1723991546622,0.014,59942.0,59941.0,0.471775]
[1723991547199,0.000825,59956.0,59942.0,0.1946]
[1723991547399,0.0326803,59955.0,59943.0,0.2681]
[1723991548028,0.01098912,59956.0,59945.0,0.2431]
[1723991548248,0.01098912,59956.0,59946.0,0.1946]
[1723991548249,0.000825,59956.0,59946.0,0.1946]
[1723991548447,0.04350562,59956.0,59946.0,0.1946]
[1723991549056,0.014,59955.0,59946.0,0.1946]
[1723991550119,0.000825,59956.0,59946.0,0.1946]
[1723991550323,0.014,59955.0,59946.0,0.1946]
[1723991550731,0.000825,59956.0,59946.0,0.1946]
[1723991550936,0.014,59955.0,59946.0,0.1946]
[1723991551141,0.05744723,59954.0,59947.0,0.2681]
[1723991551951,0.014,59955.0,59947.0,0.2681]
[1723991552590,0.014,59954.0,59947.0,0.2681]
[1723991553036,0.000825,59956.0,59947.0,0.2681]
[1723991553206,0.000825,59956.0,59947.0,0.266505]
[1723991553408,0.014,59954.0,59947.0,0.266505]
[1723991553861,0.2022,59952.0,59947.0,0.266505]
[1723991554045,0.2022,59952.0,59945.0,0.0009086]
[1723991554046,0.2883,59951.0,59945.0,0.0009086]
[1723991554256,0.1,59951.0,59945.0,0.0009086]
[1723991555625,0.14951247,59951.0,59945.0,0.0009086]
[1723991555825,0.06660736,59950.0,59945.0,0.0009086]
[1723991556264,0.2022,59946.0,59945.0,0.0009086]
[1723991556458,0.3022,59946.0,59945.0,0.0009086]
[1723991558070,0.3162,59946.0,59945.0,0.0009086]
[1723991558477,0.32645362,59946.0,59945.0,0.0009086]
[1723991559606,0.13825362,59946.0,59945.0,0.2708086]
[1723991559807,0.03825362,59946.0,59945.0,0.4704086]
[1723991561585,0.028,59946.0,59945.0,0.4704086]
[1723991563509,0.0939773,59946.0,59945.0,0.4704086]
[1723991564120,0.11438467,59946.0,59945.0,0.4704086]
[1723991564291,0.1939773,59946.0,59945.0,0.4704086]
[1723991564491,0.128,59946.0,59945.0,0.4704086]
[1723991565506,0.028,59946.0,59945.0,0.4704086]
[1723991565711,0.128,59946.0,59945.0,0.4704086]
[1723991566898,0.028,59946.0,59945.0,0.4704086]
[1723991569103,0.09397444,59946.0,59945.0,0.4704086]
[1723991570786,0.028,59946.0,59945.0,0.4704086]
[1723991572359,0.028,59946.0,59945.0,0.4714086]
[1723991573174,0.028,59946.0,59945.0,0.51945696]
[1723991573781,0.028,59946.0,59945.0,0.4714086]
[1723991575355,0.028,59946.0,59945.0,0.4734086]
[1723991575562,0.028,59946.0,59945.0,0.4754086]
[1723991576011,0.028,59946.0,59945.0,0.5921816]
[1723991576184,0.014,59946.0,59945.0,0.5881816]
[1723991576395,0.000826,59955.0,59945.0,0.5881816]
[1723991576396,0.000826,59955.0,59950.0,0.004]
[1723991576618,0.000826,59955.0,59945.0,0.0019086]
[1723991576937,0.000826,59955.0,59946.0,0.4852]
[1723991577116,0.000826,59955.0,59945.0,0.1186816]
[1723991577117,0.000826,59955.0,59947.0,0.4852]
[1723991577323,0.000826,59955.0,59946.0,0.4852]
[1723991577453,0.000826,59955.0,59947.0,0.116768]
[1723991577653,0.000826,59955.0,59945.0,0.1186806]
[1723991577859,0.000826,59955.0,59949.0,0.4852]
[1723991578075,0.000826,59955.0,59950.0,0.4852]
[1723991578283,0.000826,59955.0,59946.0,0.116771]
[1723991578284,0.000826,59955.0,59947.0,0.4852]
[1723991578483,0.000826,59955.0,59946.0,0.4852]
[1723991578756,0.000826,59955.0,59947.0,0.1963]
[1723991578965,0.011826,59955.0,59948.0,0.2889]
[1723991579150,0.014826,59955.0,59953.0,0.4852]
[1723991579323,0.014826,59955.0,59954.0,0.2889]
[1723991579648,0.024826,59955.0,59954.0,0.2899]
[1723991579853,0.000826,59955.0,59954.0,0.2899]
[1723991580205,0.011826,59955.0,59954.0,0.2899]
[1723991580451,0.000826,59955.0,59954.0,0.2899]
[1723991580850,0.014826,59955.0,59954.0,0.2899]
[1723991581251,0.014826,59955.0,59945.0,0.0009086]
[1723991581252,0.47940742,59955.0,59945.0,0.0009086]
[1723991581484,0.25179751,59951.0,59945.0,0.0009086]
[1723991581644,0.11557893,59950.0,59945.0,0.0009086]
[1723991581842,0.16598142,59949.0,59945.0,0.0009086]
[1723991582199,0.06598142,59948.0,59945.0,0.0009086]
[1723991582831,0.11557893,59948.0,59945.0,0.0009086]
[1723991583023,0.16598142,59947.0,59945.0,0.0009086]
[1723991583244,0.06598142,59946.0,59945.0,0.0009086]
[1723991585787,0.07998142,59946.0,59945.0,0.0009086]
[1723991586196,0.09398142,59946.0,59945.0,0.0009086]
[1723991587006,0.14357893,59946.0,59945.0,0.0009086]
[1723991587208,0.15352411,59946.0,59945.0,0.0009086]
[1723991587414,0.20388793,59946.0,59945.0,0.0009086]
[1723991588016,0.2783422,59946.0,59945.0,0.0009086]
[1723991588388,0.25405843,59946.0,59945.0,0.0009086]
[1723991589307,0.3533308,59946.0,59945.0,0.0009086]
[1723991590310,0.25405843,59946.0,59945.0,0.0009086]
[1723991590940,0.35342116,59946.0,59945.0,0.0009086]
[1723991591343,0.20388793,59946.0,59945.0,0.0009086]
[1723991591793,0.30325123,59946.0,59945.0,0.0009086]
[1723991592614,0.27841192,59946.0,59945.0,0.1814086]
[1723991593036,0.20388793,59946.0,59945.0,0.1814086]
[1723991595199,0.2535714,59946.0,59945.0,0.1814086]
[1723991596782,0.2535714,59946.0,59945.0,0.4624086]
[1723991596987,0.09398142,59946.0,59945.0,0.51255696]
[1723991597230,0.028,59946.0,59945.0,0.51255696]
[1723991597405,0.028,59946.0,59945.0,0.4674086]
[1723991597606,0.028,59946.0,59945.0,0.4634086]
[1723991598666,0.01009481,59953.0,59946.0,0.281]
[1723991599884,0.06692137,59952.0,59946.0,0.281]
[1723991600998,0.06692137,59952.0,59946.0,0.2819075]
[1723991601432,0.11658989,59952.0,59946.0,0.2819075]
[1723991601633,0.16692137,59951.0,59946.0,0.2819075]
[1723991601868,0.1,59951.0,59946.0,0.2819075]
[1723991602394,0.14966852,59951.0,59946.0,0.2819075]
[1723991602621,0.06692233,59950.0,59946.0,0.2819075]
[1723991603023,0.04966854,59951.0,59946.0,0.2819075]
[1723991603229,0.0669238,59950.0,59946.0,0.2819075]
[1723991604002,0.114,59951.0,59948.0,0.001]
[1723991604375,0.114,59951.0,59949.0,0.281]
[1723991604779,0.014,59951.0,59949.0,0.281]
[1723991604907,0.05976335,59953.0,59949.0,0.281]
[1723991605109,0.014,59951.0,59949.0,0.32745161]
[1723991605310,0.014,59951.0,59950.0,0.4627]
[1723991605511,0.01009481,59953.0,59951.0,0.4617]
[1723991605729,0.01009481,59953.0,59952.0,0.281]
[1723991605965,0.01009481,59953.0,59952.0,0.4617]
[1723991607608,0.02409481,59953.0,59952.0,0.4617]
[1723991607784,0.03809481,59953.0,59952.0,0.4617]
[1723991608304,0.02409481,59953.0,59952.0,0.4617]
[1723991608705,0.03809481,59953.0,59952.0,0.4617]
[1723991610048,0.03809481,59953.0,59952.0,0.4627]
[1723991614468,0.03809481,59953.0,59952.0,0.4647]
[1723991614863,0.03809481,59953.0,59952.0,0.4627]
[1723991614864,0.03891981,59953.0,59952.0,0.4627]
[1723991616240,0.03891981,59953.0,59952.0,0.4647]
[1723991616962,0.02491981,59953.0,59952.0,0.4647]
[1723991617293,0.03891981,59953.0,59952.0,0.4667]
[1723991617494,0.02491981,59953.0,59952.0,0.4627]
[1723991617897,0.03891981,59953.0,59952.0,0.4627]
[1723991619771,0.03891981,59953.0,59952.0,0.281]
[1723991625417,0.10586,59953.0,59952.0,0.281]
[1723991627996,0.03891981,59953.0,59952.0,0.281]
[1723991629178,0.03891981,59953.0,59952.0,0.282]
[1723991629375,0.03891981,59953.0,59952.0,0.32921]
[1723991630056,0.03891981,59953.0,59952.0,0.282]
[1723991630814,0.10588658,59953.0,59952.0,0.281]
[1723991631976,0.18678658,59953.0,59952.0,0.281]
[1723991632184,0.18678658,59953.0,59952.0,0.282]
[1723991632334,0.18678658,59953.0,59952.0,0.281]
[1723991632721,0.18678658,59953.0,59952.0,0.282]
[1723991633351,0.18678658,59953.0,59952.0,0.281]
[1723991634750,0.18678658,59953.0,59948.0,0.2871]
[1723991634953,0.06696677,59952.0,59948.0,0.2871]
[1723991635159,0.06696677,59952.0,59950.0,0.001]
[1723991635916,0.06696677,59952.0,59950.0,0.003]
[1723991636118,0.06696677,59952.0,59950.0,0.001]
[1723991637109,0.06696677,59952.0,59951.0,0.4765]
[1723991637319,0.08096677,59952.0,59951.0,0.4755]
[1723991637720,0.09496677,59952.0,59951.0,0.4755]
[1723991637922,0.08096677,59952.0,59951.0,0.4755]
[1723991638323,0.06696677,59952.0,59951.0,0.4755]
[1723991638704,0.08096677,59952.0,59951.0,0.4755]
[1723991639339,0.09496677,59952.0,59951.0,0.4755]
[1723991645478,0.09496677,59952.0,59951.0,0.4765]
[1723991646473,0.09496677,59952.0,59951.0,0.4755]
[1723991646977,0.14472996,59952.0,59951.0,0.4755]
[1723991647185,0.14472996,59952.0,59950.0,0.001]
[1723991647186,0.22562996,59952.0,59950.0,0.001]
[1723991647407,0.11672996,59951.0,59950.0,0.001]
[1723991648976,0.11672996,59951.0,59948.0,0.2801]
[1723991649176,0.0809,59949.0,59948.0,0.2801]
[1723991649402,0.14786677,59949.0,59948.0,0.2801]
[1723991649642,0.19762996,59949.0,59948.0,0.2801]
[1723991649801,0.19764767,59949.0,59948.0,0.2801]
[1723991650007,0.14786677,59949.0,59948.0,0.2801]
[1723991650324,0.15786677,59949.0,59948.0,0.2801]
[1723991651735,0.16986677,59949.0,59947.0,0.0009075]
[1723991652064,0.11674432,59948.0,59947.0,0.0009075]
[1723991653545,0.12574432,59948.0,59947.0,0.0009075]
[1723991654667,0.07596677,59948.0,59947.0,0.0009075]
[1723991655069,0.08596677,59948.0,59947.0,0.0009075]
[1723991656846,0.13574432,59948.0,59947.0,0.0009075]
[1723991657593,0.08596677,59948.0,59947.0,0.0009075]
[1723991660726,0.019,59948.0,59947.0,0.0009075]
[1723991660982,0.019,59948.0,59947.0,0.2620075]
[1723991663344,0.019825,59948.0,59947.0,0.2620075]
[1723991663557,0.019825,59948.0,59947.0,0.0009075]
[1723991663757,0.26227083,59948.0,59947.0,0.0009075]
[1723991664014,0.18764344,59948.0,59947.0,0.0009075]
[1723991664481,0.16864344,59948.0,59947.0,0.0009075]
[1723991664820,0.18264344,59948.0,59947.0,0.0009075]
[1723991665222,0.16864344,59948.0,59947.0,0.0009075]
[1723991665462,0.24325273,59948.0,59947.0,0.0009075]
[1723991665662,0.25725273,59948.0,59947.0,0.0009075]
[1723991665873,0.27125273,59948.0,59947.0,0.0009075]
[1723991666292,0.25725273,59948.0,59947.0,0.0009075]
[1723991666499,0.27125273,59948.0,59947.0,0.0009075]
[1723991666702,0.39065984,59948.0,59947.0,0.0009075]
[1723991667108,0.41553712,59948.0,59947.0,0.0009075]
[1723991667317,0.56484344,59948.0,59947.0,0.0009075]
[1723991668358,0.55084344,59948.0,59947.0,0.0009075]
[1723991668756,0.56484344,59948.0,59947.0,0.0009075]
[1723991668933,0.55084344,59948.0,59947.0,0.0009075]
[1723991669337,0.56484344,59948.0,59947.0,0.0009075]
[1723991671116,0.64742665,59948.0,59947.0,0.0009075]
[1723991671513,0.56484344,59948.0,59947.0,0.0009075]
[1723991671726,0.64574344,59948.0,59947.0,0.0009075]
[1723991673467,0.76993952,59948.0,59947.0,0.0009075]
[1723991673814,0.64574344,59948.0,59947.0,0.0009075]
[1723991674015,0.76994062,59948.0,59947.0,0.0009075]
[1723991674827,0.40174062,59948.0,59947.0,0.0009075]